[Event "Titled Tuesday Blitz July 11 Early 2023"]
[White "Chigaev, Maksim"]
[Black "Kvaloy, Aksel Bu"]
[WhiteFideId "4108116"]
[BlackFideId "1528815"]
[WhiteElo "2923"]
[BlackElo "2673"]
[Result "1-0"]
[Round "6"]
[TimeControl "180+2"]
[Date "2023.07.11"]
[WhiteClock "0:00:04"]
[BlackClock "0:00:00"]
[Board "32"]

1. e4 {[%clk 0:03:00]}  e5 {[%clk 0:02:57]} 2. Nf3 {[%clk 0:02:59]}  Nf6 {[%clk 0:02:56]} 3. Nc3 {[%clk 0:02:59]}  Nc6 {[%clk 0:02:55]} 4. h3 {[%clk 0:02:56]}  d5 {[%clk 0:02:54]} 5. exd5 {[%clk 0:02:55]}  Nxd5 {[%clk 0:02:55]} 6. Bb5 {[%clk 0:02:53]}  Nxc3 {[%clk 0:02:55]} 7. bxc3 {[%clk 0:02:54]}  Bd6 {[%clk 0:02:54]} 8. O-O {[%clk 0:02:54]}  O-O {[%clk 0:02:53]} 9. Re1 {[%clk 0:02:48]}  Bd7 {[%clk 0:02:47]} 10. d4 {[%clk 0:02:35]}  Re8 {[%clk 0:02:40]} 11. Bg5 {[%clk 0:02:28]}  Qc8 {[%clk 0:02:40]} 12. a4 {[%clk 0:02:09]}  h6 {[%clk 0:02:36]} 13. Be3 {[%clk 0:01:49]}  e4 {[%clk 0:02:27]} 14. Nd2 {[%clk 0:01:34]}  Bxh3 {[%clk 0:02:27]} 15. d5 {[%clk 0:01:31]}  Bg4 {[%clk 0:02:26]} 16. f3 {[%clk 0:01:11]}  exf3 {[%clk 0:02:22]} 17. gxf3 {[%clk 0:01:12]}  Bh5 {[%clk 0:02:12]} 18. dxc6 {[%clk 0:01:00]}  Qh3 {[%clk 0:02:09]} 19. Qe2 {[%clk 0:00:38]}  Re6 {[%clk 0:01:04]} 20. Bd3 {[%clk 0:00:25]}  bxc6 {[%clk 0:00:50]} 21. Qg2 {[%clk 0:00:25]}  Qh4 {[%clk 0:00:42]} 22. Bf2 {[%clk 0:00:25]}  Qf4 {[%clk 0:00:40]} 23. Rxe6 {[%clk 0:00:19]}  fxe6 {[%clk 0:00:38]} 24. Rd1 {[%clk 0:00:12]}  Rf8 {[%clk 0:00:38]} 25. Be4 {[%clk 0:00:11]}  Rf6 {[%clk 0:00:28]} 26. Nc4 {[%clk 0:00:12]}  Bxf3 {[%clk 0:00:23]} 27. Bxf3 {[%clk 0:00:11]}  Qxf3 {[%clk 0:00:24]} 28. Qxf3 {[%clk 0:00:10]}  Rxf3 {[%clk 0:00:25]} 29. Nxd6 {[%clk 0:00:10]}  cxd6 {[%clk 0:00:25]} 30. Rxd6 {[%clk 0:00:06]}  Rxc3 {[%clk 0:00:25]} 31. Bxa7 {[%clk 0:00:04]}  Rxc2 {[%clk 0:00:23]} 32. a5 {[%clk 0:00:05]}  Ra2 {[%clk 0:00:18]} 33. Bb6 {[%clk 0:00:05]}  Kf7 {[%clk 0:00:19]} 34. Rxc6 {[%clk 0:00:05]}  g5 {[%clk 0:00:14]} 35. Bc7 {[%clk 0:00:04]}  g4 {[%clk 0:00:12]} 36. a6 {[%clk 0:00:03]}  h5 {[%clk 0:00:12]} 37. Bb8 {[%clk 0:00:03]}  h4 {[%clk 0:00:11]} 38. a7 {[%clk 0:00:04]}  g3 {[%clk 0:00:06]} 39. Rc4 {[%clk 0:00:04]}  h3 {[%clk 0:00:04]} 40. Bxg3 {[%clk 0:00:04]}  Rxa7 {[%clk 0:00:04]} 41. Kh2 {[%clk 0:00:05]}  Ra2+ {[%clk 0:00:04]} 42. Kxh3 {[%clk 0:00:06]}  Ke7 {[%clk 0:00:05]} 43. Re4 {[%clk 0:00:06]}  Ra5 {[%clk 0:00:05]} 44. Kg4 {[%clk 0:00:06]}  Rf5 {[%clk 0:00:06]} 45. Be5 {[%clk 0:00:07]}  Kf7 {[%clk 0:00:06]} 46. Bf4 {[%clk 0:00:07]}  Ke7 {[%clk 0:00:06]} 47. Rc4 {[%clk 0:00:07]}  Kf7 {[%clk 0:00:07]} 48. Rc7+ {[%clk 0:00:07]}  Kf6 {[%clk 0:00:07]} 49. Ra7 {[%clk 0:00:05]}  Kg6 {[%clk 0:00:07]} 50. Ra6 {[%clk 0:00:05]}  Kf6 {[%clk 0:00:08]} 51. Rc6 {[%clk 0:00:05]}  Kf7 {[%clk 0:00:08]} 52. Bd2 {[%clk 0:00:05]}  Kf6 {[%clk 0:00:09]} 53. Bc3+ {[%clk 0:00:06]}  Ke7 {[%clk 0:00:09]} 54. Bb4+ {[%clk 0:00:05]}  Kf7 {[%clk 0:00:09]} 55. Rc7+ {[%clk 0:00:05]}  Kf6 {[%clk 0:00:10]} 56. Be7+ {[%clk 0:00:06]}  Kg6 {[%clk 0:00:10]} 57. Bh4 {[%clk 0:00:06]}  Kh6 {[%clk 0:00:10]} 58. Re7 {[%clk 0:00:06]}  Re5 {[%clk 0:00:11]} 59. Bg3 {[%clk 0:00:06]}  Re4+ {[%clk 0:00:10]} 60. Kf3 {[%clk 0:00:06]}  Ra4 {[%clk 0:00:09]} 61. Bf4+ {[%clk 0:00:07]}  Kg6 {[%clk 0:00:09]} 62. Rxe6+ {[%clk 0:00:08]}  Kf5 {[%clk 0:00:09]} 63. Re5+ {[%clk 0:00:08]}  Kf6 {[%clk 0:00:09]} 64. Kg4 {[%clk 0:00:09]}  Ra6 {[%clk 0:00:09]} 65. Rh5 {[%clk 0:00:09]}  Re6 {[%clk 0:00:08]} 66. Ra5 {[%clk 0:00:05]}  Kg6 {[%clk 0:00:08]} 67. Be5 {[%clk 0:00:05]}  Rc6 {[%clk 0:00:05]} 68. Rd5 {[%clk 0:00:05]}  Re6 {[%clk 0:00:05]} 69. Kf4 {[%clk 0:00:05]}  Rc6 {[%clk 0:00:05]} 70. Rd7 {[%clk 0:00:05]}  Re6 {[%clk 0:00:05]} 71. Rg7+ {[%clk 0:00:05]}  Kh6 {[%clk 0:00:06]} 72. Rg3 {[%clk 0:00:04]}  Kh7 {[%clk 0:00:02]} 73. Kf5 {[%clk 0:00:05]}  Ra6 {[%clk 0:00:02]} 74. Rg7+ {[%clk 0:00:03]}  Kh6 {[%clk 0:00:02]} 75. Rg8 {[%clk 0:00:04]}  Ra7 {[%clk 0:00:01]} 76. Rg2 {[%clk 0:00:04]}  Kh7 {[%clk 0:00:01]} 77. Rh2+ {[%clk 0:00:03]}  Kg8 {[%clk 0:00:00]} 78. Rh8+ {[%clk 0:00:04]} 1-0


[Site "https://www.chess.com"]

[Event "Titled Tuesday Blitz July 11 Early 2023"]
[White "Hilary46"]
[Black "Fiorito, Francisco"]
[BlackFideId "180165"]
[WhiteElo "2757"]
[BlackElo "2541"]
[Result "1-0"]
[Round "6"]
[TimeControl "180+2"]
[Date "2023.07.11"]
[WhiteClock "0:00:39"]
[BlackClock "0:00:01"]
[Board "42"]

1. e4 {[%clk 0:03:00]}  c5 {[%clk 0:02:59]} 2. Nf3 {[%clk 0:03:01]}  Nc6 {[%clk 0:02:59]} 3. d4 {[%clk 0:03:01]}  cxd4 {[%clk 0:03:00]} 4. Nxd4 {[%clk 0:03:02]}  g6 {[%clk 0:03:01]} 5. Nc3 {[%clk 0:03:00]}  Bg7 {[%clk 0:03:01]} 6. Be3 {[%clk 0:03:01]}  Nf6 {[%clk 0:03:01]} 7. Nxc6 {[%clk 0:03:02]}  bxc6 {[%clk 0:02:59]} 8. e5 {[%clk 0:03:02]}  Ng8 {[%clk 0:02:59]} 9. Bd4 {[%clk 0:03:03]}  Qa5 {[%clk 0:02:59]} 10. f4 {[%clk 0:02:58]}  f6 {[%clk 0:02:59]} 11. Qd2 {[%clk 0:02:58]}  Nh6 {[%clk 0:02:38]} 12. exf6 {[%clk 0:02:39]}  exf6 {[%clk 0:02:35]} 13. Bc4 {[%clk 0:02:20]}  d5 {[%clk 0:02:28]} 14. O-O-O {[%clk 0:02:12]}  Kf7 {[%clk 0:01:44]} 15. Nxd5 {[%clk 0:02:03]}  Qxd2+ {[%clk 0:01:43]} 16. Rxd2 {[%clk 0:02:04]}  cxd5 {[%clk 0:01:43]} 17. Bxd5+ {[%clk 0:02:05]}  Be6 {[%clk 0:01:44]} 18. Bxa8 {[%clk 0:02:04]}  Rxa8 {[%clk 0:01:45]} 19. Re1 {[%clk 0:01:56]}  Nf5 {[%clk 0:01:43]} 20. Bf2 {[%clk 0:01:47]}  a5 {[%clk 0:01:33]} 21. a4 {[%clk 0:01:46]}  h5 {[%clk 0:01:22]} 22. Rd3 {[%clk 0:01:30]}  g5 {[%clk 0:01:18]} 23. fxg5 {[%clk 0:01:14]}  fxg5 {[%clk 0:01:17]} 24. Rf1 {[%clk 0:01:06]}  Bf6 {[%clk 0:01:04]} 25. Be1 {[%clk 0:00:59]}  g4 {[%clk 0:00:58]} 26. Bc3 {[%clk 0:00:56]}  Bg5+ {[%clk 0:00:57]} 27. Bd2 {[%clk 0:00:56]}  Bf6 {[%clk 0:00:49]} 28. b3 {[%clk 0:00:50]}  h4 {[%clk 0:00:42]} 29. Bc3 {[%clk 0:00:49]}  Bg5+ {[%clk 0:00:41]} 30. Kb2 {[%clk 0:00:50]}  Be7 {[%clk 0:00:32]} 31. Rd4 {[%clk 0:00:46]}  g3 {[%clk 0:00:21]} 32. hxg3 {[%clk 0:00:45]}  hxg3 {[%clk 0:00:22]} 33. Rdf4 {[%clk 0:00:43]}  Kg6 {[%clk 0:00:19]} 34. Rg4+ {[%clk 0:00:43]}  Kh5 {[%clk 0:00:18]} 35. Re4 {[%clk 0:00:43]}  Ra6 {[%clk 0:00:15]} 36. Rxe6 {[%clk 0:00:43]}  Rxe6 {[%clk 0:00:14]} 37. Rxf5+ {[%clk 0:00:43]}  Kg4 {[%clk 0:00:15]} 38. Rxa5 {[%clk 0:00:39]}  Re2 {[%clk 0:00:16]} 39. Re5 {[%clk 0:00:40]}  Rxe5 {[%clk 0:00:07]} 40. Bxe5 {[%clk 0:00:41]}  Bh4 {[%clk 0:00:04]} 41. a5 {[%clk 0:00:40]}  Kf5 {[%clk 0:00:05]} 42. a6 {[%clk 0:00:39]}  Kxe5 {[%clk 0:00:01]} 43. a7 {[%clk 0:00:39]} 1-0


[Site "https://www.chess.com"]

[Event "Titled Tuesday Blitz July 11 Early 2023"]
[White "Tanmay Jain"]
[Black "Lavrik, Dmitry"]
[WhiteFideId "45015481"]
[BlackFideId "24113190"]
[WhiteElo "2437"]
[BlackElo "2679"]
[Result "0-1"]
[Round "6"]
[TimeControl "180+2"]
[Date "2023.07.11"]
[WhiteClock "0:00:07"]
[BlackClock "0:01:35"]
[Board "47"]

1. Nf3 {[%clk 0:03:00]}  c5 {[%clk 0:02:58]} 2. g3 {[%clk 0:03:00]}  Nc6 {[%clk 0:02:58]} 3. d4 {[%clk 0:03:00]}  cxd4 {[%clk 0:02:57]} 4. Nxd4 {[%clk 0:03:01]}  e5 {[%clk 0:02:57]} 5. Nb3 {[%clk 0:02:59]}  d5 {[%clk 0:02:56]} 6. Bg2 {[%clk 0:02:59]}  Nf6 {[%clk 0:02:53]} 7. O-O {[%clk 0:02:51]}  h6 {[%clk 0:02:53]} 8. c4 {[%clk 0:02:46]}  Be6 {[%clk 0:02:52]} 9. cxd5 {[%clk 0:02:44]}  Nxd5 {[%clk 0:02:52]} 10. e4 {[%clk 0:02:43]}  Ndb4 {[%clk 0:02:49]} 11. Nc3 {[%clk 0:02:38]}  Be7 {[%clk 0:02:38]} 12. Bd2 {[%clk 0:02:24]}  O-O {[%clk 0:02:36]} 13. Nc1 {[%clk 0:01:44]}  Nd4 {[%clk 0:02:23]} 14. a3 {[%clk 0:01:41]}  Na6 {[%clk 0:02:16]} 15. N1e2 {[%clk 0:01:36]}  Bb3 {[%clk 0:02:14]} 16. Qc1 {[%clk 0:01:31]}  Rc8 {[%clk 0:02:10]} 17. Re1 {[%clk 0:01:04]}  Nc5 {[%clk 0:02:04]} 18. Be3 {[%clk 0:00:46]}  Nd3 {[%clk 0:02:01]} 19. Qd2 {[%clk 0:00:46]}  Nxe1 {[%clk 0:01:58]} 20. Rxe1 {[%clk 0:00:41]}  Nc2 {[%clk 0:01:57]} 21. Rd1 {[%clk 0:00:38]}  Nxe3 {[%clk 0:01:53]} 22. Qxd8 {[%clk 0:00:33]}  Rfxd8 {[%clk 0:01:50]} 23. Rxd8+ {[%clk 0:00:32]}  Bxd8 {[%clk 0:01:51]} 24. fxe3 {[%clk 0:00:31]}  Bb6 {[%clk 0:01:51]} 25. Kf2 {[%clk 0:00:31]}  Rd8 {[%clk 0:01:51]} 26. Nd5 {[%clk 0:00:30]}  Bxd5 {[%clk 0:01:50]} 27. exd5 {[%clk 0:00:30]}  Kf8 {[%clk 0:01:49]} 28. Nc3 {[%clk 0:00:31]}  Ke7 {[%clk 0:01:47]} 29. Ke2 {[%clk 0:00:31]}  f5 {[%clk 0:01:47]} 30. e4 {[%clk 0:00:23]}  g6 {[%clk 0:01:46]} 31. Kd3 {[%clk 0:00:20]}  a6 {[%clk 0:01:46]} 32. b4 {[%clk 0:00:19]}  Kd6 {[%clk 0:01:44]} 33. Bh3 {[%clk 0:00:15]}  Rf8 {[%clk 0:01:43]} 34. Bg2 {[%clk 0:00:14]}  Bg1 {[%clk 0:01:42]} 35. h3 {[%clk 0:00:14]}  Bf2 {[%clk 0:01:42]} 36. exf5 {[%clk 0:00:12]}  gxf5 {[%clk 0:01:42]} 37. g4 {[%clk 0:00:12]}  Bd4 {[%clk 0:01:35]} 38. gxf5 {[%clk 0:00:12]}  Bxc3 {[%clk 0:01:35]} 39. Kxc3 {[%clk 0:00:11]}  Rxf5 {[%clk 0:01:36]} 40. Kd3 {[%clk 0:00:11]}  Rf2 {[%clk 0:01:35]} 41. Be4 {[%clk 0:00:07]}  Ra2 {[%clk 0:01:35]} 0-1


[Site "https://www.chess.com"]

[Event "Titled Tuesday Blitz July 11 Early 2023"]
[White "Rodchenkov, Sergey D."]
[Black "Pakleza, Zbigniew"]
[WhiteFideId "4168712"]
[BlackFideId "1119290"]
[WhiteElo "2568"]
[BlackElo "2812"]
[Result "0-1"]
[Round "6"]
[TimeControl "180+2"]
[Date "2023.07.11"]
[WhiteClock "0:00:06"]
[BlackClock "0:00:06"]
[Board "50"]

1. e4 {[%clk 0:03:00]}  d6 {[%clk 0:02:58]} 2. d4 {[%clk 0:03:00]}  Nf6 {[%clk 0:02:59]} 3. Nc3 {[%clk 0:03:01]}  c6 {[%clk 0:02:58]} 4. f4 {[%clk 0:03:00]}  Qb6 {[%clk 0:02:58]} 5. h3 {[%clk 0:02:50]}  e5 {[%clk 0:02:57]} 6. Nge2 {[%clk 0:02:48]}  Be7 {[%clk 0:02:48]} 7. a3 {[%clk 0:02:45]}  Nh5 {[%clk 0:02:29]} 8. g3 {[%clk 0:02:34]}  exf4 {[%clk 0:02:29]} 9. Bxf4 {[%clk 0:02:29]}  Nxf4 {[%clk 0:02:26]} 10. Nxf4 {[%clk 0:02:25]}  Bf6 {[%clk 0:02:12]} 11. Nfe2 {[%clk 0:02:01]}  Qxb2 {[%clk 0:01:45]} 12. Bg2 {[%clk 0:02:01]}  Qb6 {[%clk 0:01:42]} 13. O-O {[%clk 0:02:00]}  Nd7 {[%clk 0:01:40]} 14. Rb1 {[%clk 0:01:54]}  Qa5 {[%clk 0:01:40]} 15. Kh1 {[%clk 0:01:49]}  O-O {[%clk 0:01:32]} 16. Rb3 {[%clk 0:01:48]}  Re8 {[%clk 0:01:30]} 17. Nf4 {[%clk 0:01:44]}  Nb6 {[%clk 0:01:16]} 18. Nh5 {[%clk 0:01:41]}  Bxd4 {[%clk 0:01:07]} 19. Nb5 {[%clk 0:01:35]}  Be5 {[%clk 0:00:50]} 20. Nxd6 {[%clk 0:01:14]}  Bxd6 {[%clk 0:00:48]} 21. Nxg7 {[%clk 0:00:59]}  Kxg7 {[%clk 0:00:45]} 22. Qxd6 {[%clk 0:01:00]}  Qe5 {[%clk 0:00:42]} 23. Qd2 {[%clk 0:01:00]}  Be6 {[%clk 0:00:31]} 24. Rbf3 {[%clk 0:01:01]}  Nc4 {[%clk 0:00:29]} 25. Qf2 {[%clk 0:01:01]}  Kg8 {[%clk 0:00:25]} 26. Rd3 {[%clk 0:00:52]}  Rad8 {[%clk 0:00:23]} 27. Qe2 {[%clk 0:00:52]}  b5 {[%clk 0:00:20]} 28. Qf2 {[%clk 0:00:48]}  a5 {[%clk 0:00:18]} 29. Qa7 {[%clk 0:00:43]}  a4 {[%clk 0:00:17]} 30. Kh2 {[%clk 0:00:39]}  Rxd3 {[%clk 0:00:15]} 31. cxd3 {[%clk 0:00:40]}  Nxa3 {[%clk 0:00:15]} 32. d4 {[%clk 0:00:38]}  Qg7 {[%clk 0:00:13]} 33. d5 {[%clk 0:00:38]}  cxd5 {[%clk 0:00:13]} 34. exd5 {[%clk 0:00:39]}  Bc8 {[%clk 0:00:10]} 35. d6 {[%clk 0:00:39]}  f5 {[%clk 0:00:07]} 36. Qc5 {[%clk 0:00:35]}  Nc4 {[%clk 0:00:05]} 37. Rd1 {[%clk 0:00:11]}  Bd7 {[%clk 0:00:04]} 38. Qc7 {[%clk 0:00:10]}  Ne5 {[%clk 0:00:03]} 39. Re1 {[%clk 0:00:06]}  Kh8 {[%clk 0:00:03]} 40. Kh1 {[%clk 0:00:05]}  h6 {[%clk 0:00:03]} 41. Qc5 {[%clk 0:00:05]}  Kg8 {[%clk 0:00:01]} 42. Qd4 {[%clk 0:00:06]}  Kh8 {[%clk 0:00:02]} 43. Rg1 {[%clk 0:00:06]}  Re6 {[%clk 0:00:02]} 44. Bd5 {[%clk 0:00:07]}  Rxd6 {[%clk 0:00:02]} 45. Qc5 {[%clk 0:00:08]}  Qf6 {[%clk 0:00:02]} 46. Re1 {[%clk 0:00:06]}  Kg7 {[%clk 0:00:03]} 47. Qd4 {[%clk 0:00:07]}  Nf7 {[%clk 0:00:04]} 48. Qf4 {[%clk 0:00:07]}  Rxd5 {[%clk 0:00:04]} 49. Qh4 {[%clk 0:00:07]}  Rd4 {[%clk 0:00:04]} 50. Qh5 {[%clk 0:00:07]}  Bc6+ {[%clk 0:00:05]} 51. Kh2 {[%clk 0:00:07]}  Rd2+ {[%clk 0:00:05]} 52. Re2 {[%clk 0:00:07]}  Rxe2+ {[%clk 0:00:04]} 53. Qxe2 {[%clk 0:00:08]}  Qd4 {[%clk 0:00:05]} 54. g4 {[%clk 0:00:07]}  Qe5+ {[%clk 0:00:04]} 55. Qxe5+ {[%clk 0:00:07]}  Nxe5 {[%clk 0:00:05]} 56. Kg3 {[%clk 0:00:08]}  a3 {[%clk 0:00:06]} 57. Kf4 {[%clk 0:00:06]}  a2 {[%clk 0:00:06]} 0-1


[Site "https://www.chess.com"]

[Event "Titled Tuesday Blitz July 11 Early 2023"]
[White "Ganiev, Roman"]
[Black "Kantor, Gergely"]
[WhiteFideId "4131452"]
[BlackFideId "751499"]
[WhiteElo "2566"]
[BlackElo "2788"]
[Result "0-1"]
[Round "6"]
[TimeControl "180+2"]
[Date "2023.07.11"]
[WhiteClock "0:00:11"]
[BlackClock "0:00:20"]
[Board "51"]

1. e4 {[%clk 0:02:51]}  e6 {[%clk 0:03:00]} 2. d4 {[%clk 0:02:41]}  d5 {[%clk 0:03:00]} 3. Nc3 {[%clk 0:02:41]}  Bb4 {[%clk 0:02:59]} 4. e5 {[%clk 0:02:41]}  c5 {[%clk 0:02:58]} 5. a3 {[%clk 0:02:42]}  Bxc3+ {[%clk 0:02:58]} 6. bxc3 {[%clk 0:02:42]}  Nc6 {[%clk 0:02:58]} 7. Qg4 {[%clk 0:02:40]}  g6 {[%clk 0:02:57]} 8. h4 {[%clk 0:02:34]}  h6 {[%clk 0:02:55]} 9. Ne2 {[%clk 0:02:28]}  Qa5 {[%clk 0:02:52]} 10. Bd2 {[%clk 0:02:27]}  Bd7 {[%clk 0:02:51]} 11. g3 {[%clk 0:02:26]}  Qa4 {[%clk 0:02:48]} 12. Bh3 {[%clk 0:02:26]}  Qxc2 {[%clk 0:02:43]} 13. Rc1 {[%clk 0:02:25]}  Qf5 {[%clk 0:02:41]} 14. Qxf5 {[%clk 0:02:22]}  gxf5 {[%clk 0:02:41]} 15. Be3 {[%clk 0:02:11]}  Rc8 {[%clk 0:02:19]} 16. Rb1 {[%clk 0:02:04]}  cxd4 {[%clk 0:02:15]} 17. cxd4 {[%clk 0:02:00]}  Na5 {[%clk 0:02:15]} 18. O-O {[%clk 0:01:55]}  Ne7 {[%clk 0:02:06]} 19. Bd2 {[%clk 0:01:38]}  Nc4 {[%clk 0:02:02]} 20. Bb4 {[%clk 0:01:30]}  Nc6 {[%clk 0:02:02]} 21. Rfc1 {[%clk 0:01:18]}  b6 {[%clk 0:01:53]} 22. Ra1 {[%clk 0:00:49]}  a5 {[%clk 0:01:43]} 23. Bc3 {[%clk 0:00:42]}  Ke7 {[%clk 0:01:42]} 24. Nf4 {[%clk 0:00:40]}  b5 {[%clk 0:01:39]} 25. Bf1 {[%clk 0:00:38]}  b4 {[%clk 0:01:35]} 26. axb4 {[%clk 0:00:28]}  axb4 {[%clk 0:01:35]} 27. Be1 {[%clk 0:00:27]}  b3 {[%clk 0:01:34]} 28. Ra6 {[%clk 0:00:17]}  Nxd4 {[%clk 0:01:30]} 29. Bb4+ {[%clk 0:00:17]}  Ke8 {[%clk 0:01:29]} 30. Nh5 {[%clk 0:00:16]}  Nxe5 {[%clk 0:01:07]} 31. Nf6+ {[%clk 0:00:16]}  Kd8 {[%clk 0:01:07]} 32. Rb1 {[%clk 0:00:15]}  Nec6 {[%clk 0:00:57]} 33. Bd6 {[%clk 0:00:14]}  Nf3+ {[%clk 0:00:46]} 34. Kg2 {[%clk 0:00:13]}  Nd2 {[%clk 0:00:46]} 35. Rb6 {[%clk 0:00:09]}  Nxb1 {[%clk 0:00:44]} 36. Rb7 {[%clk 0:00:10]}  Be8 {[%clk 0:00:39]} 37. Bb5 {[%clk 0:00:10]}  Nc3 {[%clk 0:00:35]} 38. Bxc6 {[%clk 0:00:08]}  Rxc6 {[%clk 0:00:35]} 39. Rb8+ {[%clk 0:00:07]}  Rc8 {[%clk 0:00:35]} 40. Rb7 {[%clk 0:00:07]}  Ra8 {[%clk 0:00:30]} 41. Be5 {[%clk 0:00:04]}  Nb5 {[%clk 0:00:26]} 42. Rb6 {[%clk 0:00:02]}  d4 {[%clk 0:00:22]} 43. Nxe8 {[%clk 0:00:02]}  Rxe8 {[%clk 0:00:20]} 44. Rxb5 {[%clk 0:00:03]}  Kd7 {[%clk 0:00:18]} 45. Rxb3 {[%clk 0:00:03]}  Ra4 {[%clk 0:00:18]} 46. Rb7+ {[%clk 0:00:03]}  Kc6 {[%clk 0:00:18]} 47. Rxf7 {[%clk 0:00:03]}  Kd5 {[%clk 0:00:18]} 48. f4 {[%clk 0:00:04]}  Ke4 {[%clk 0:00:18]} 49. Rd7 {[%clk 0:00:03]}  d3 {[%clk 0:00:19]} 50. Kh3 {[%clk 0:00:02]}  h5 {[%clk 0:00:19]} 51. g4 {[%clk 0:00:01]}  hxg4+ {[%clk 0:00:18]} 52. Kg3 {[%clk 0:00:02]}  Ra3 {[%clk 0:00:18]} 53. Rd4+ {[%clk 0:00:02]}  Ke3 {[%clk 0:00:18]} 54. h5 {[%clk 0:00:03]}  Ke2 {[%clk 0:00:18]} 55. h6 {[%clk 0:00:03]}  d2+ {[%clk 0:00:19]} 56. Kh4 {[%clk 0:00:04]}  Rd3 {[%clk 0:00:19]} 57. Rxd3 {[%clk 0:00:04]}  Kxd3 {[%clk 0:00:19]} 58. h7 {[%clk 0:00:04]}  d1=Q {[%clk 0:00:19]} 59. Kg5 {[%clk 0:00:05]}  Qh1 {[%clk 0:00:19]} 60. h8=Q {[%clk 0:00:05]}  Rxh8 {[%clk 0:00:19]} 61. Bxh8 {[%clk 0:00:06]}  Qxh8 {[%clk 0:00:19]} 62. Kg6 {[%clk 0:00:07]}  g3 {[%clk 0:00:20]} 63. Kf7 {[%clk 0:00:08]}  g2 {[%clk 0:00:20]} 64. Kxe6 {[%clk 0:00:09]}  g1=Q {[%clk 0:00:20]} 65. Kxf5 {[%clk 0:00:09]}  Qh7+ {[%clk 0:00:20]} 66. Ke5 {[%clk 0:00:10]}  Qd4+ {[%clk 0:00:20]} 67. Ke6 {[%clk 0:00:10]}  Qde4+ {[%clk 0:00:20]} 68. Kd6 {[%clk 0:00:11]}  Qhe7# {[%clk 0:00:20]} 0-1


[Site "https://www.chess.com"]

[Event "Titled Tuesday Blitz July 11 Early 2023"]
[White "Horobetz, Graham"]
[Black "Kozak, Antoni"]
[WhiteFideId "2047322"]
[BlackFideId "21832030"]
[WhiteElo "2561"]
[BlackElo "2773"]
[Result "0-1"]
[Round "6"]
[TimeControl "180+2"]
[Date "2023.07.11"]
[WhiteClock "0:00:00"]
[BlackClock "0:01:01"]
[Board "52"]

1. e4 {[%clk 0:02:39]}  c6 {[%clk 0:02:59]} 2. d4 {[%clk 0:02:38]}  d5 {[%clk 0:02:59]} 3. Nc3 {[%clk 0:02:39]}  dxe4 {[%clk 0:02:57]} 4. Nxe4 {[%clk 0:02:40]}  Nf6 {[%clk 0:02:56]} 5. Nxf6+ {[%clk 0:02:40]}  exf6 {[%clk 0:02:57]} 6. c3 {[%clk 0:02:41]}  Bd6 {[%clk 0:02:56]} 7. Bd3 {[%clk 0:02:42]}  O-O {[%clk 0:02:55]} 8. Qc2 {[%clk 0:02:42]}  Re8+ {[%clk 0:02:54]} 9. Ne2 {[%clk 0:02:43]}  f5 {[%clk 0:02:53]} 10. Bxf5 {[%clk 0:02:25]}  Bxf5 {[%clk 0:02:53]} 11. Qxf5 {[%clk 0:02:26]}  Nd7 {[%clk 0:02:53]} 12. Be3 {[%clk 0:02:24]}  Nb6 {[%clk 0:02:53]} 13. O-O {[%clk 0:02:21]}  Nc4 {[%clk 0:02:53]} 14. b3 {[%clk 0:02:16]}  g6 {[%clk 0:02:44]} 15. Qd3 {[%clk 0:02:10]}  Nxe3 {[%clk 0:02:41]} 16. fxe3 {[%clk 0:02:11]}  f5 {[%clk 0:02:38]} 17. Rae1 {[%clk 0:02:03]}  Qg5 {[%clk 0:02:32]} 18. Nf4 {[%clk 0:01:55]}  Re4 {[%clk 0:02:28]} 19. Qc4+ {[%clk 0:01:51]}  Kh8 {[%clk 0:02:24]} 20. Qf7 {[%clk 0:01:36]}  Re7 {[%clk 0:02:21]} 21. Nh3 {[%clk 0:01:17]}  Qh4 {[%clk 0:01:52]} 22. Qc4 {[%clk 0:01:13]}  Rae8 {[%clk 0:01:52]} 23. Qd3 {[%clk 0:01:07]}  Re4 {[%clk 0:01:43]} 24. Qd2 {[%clk 0:00:38]}  Qe7 {[%clk 0:01:19]} 25. Nf2 {[%clk 0:00:24]}  Rxe3 {[%clk 0:01:20]} 26. Nd3 {[%clk 0:00:22]}  Qh4 {[%clk 0:01:01]} 27. Rxe3 {[%clk 0:00:04]}  Bxh2+ {[%clk 0:01:00]} 28. Kh1 {[%clk 0:00:00]}  Bg3+ {[%clk 0:01:01]} 0-1


[Site "https://www.chess.com"]

[Event "Titled Tuesday Blitz July 11 Early 2023"]
[White "Leon Oquendo, Jorge"]
[Black "Atakhan, Abtin"]
[WhiteFideId "3514803"]
[BlackFideId "22502203"]
[WhiteElo "2557"]
[BlackElo "2741"]
[Result "1-0"]
[Round "6"]
[TimeControl "180+2"]
[Date "2023.07.11"]
[WhiteClock "0:01:01"]
[BlackClock "0:00:20"]
[Board "53"]

1. d4 {[%clk 0:03:00]}  Nf6 {[%clk 0:02:59]} 2. c4 {[%clk 0:02:58]}  g6 {[%clk 0:02:59]} 3. Nc3 {[%clk 0:02:57]}  d5 {[%clk 0:03:00]} 4. cxd5 {[%clk 0:02:56]}  Nxd5 {[%clk 0:03:01]} 5. Bd2 {[%clk 0:02:57]}  Bg7 {[%clk 0:02:59]} 6. e4 {[%clk 0:02:57]}  Nxc3 {[%clk 0:03:00]} 7. Bxc3 {[%clk 0:02:58]}  O-O {[%clk 0:03:01]} 8. Nf3 {[%clk 0:02:57]}  Bg4 {[%clk 0:02:55]} 9. Be2 {[%clk 0:02:57]}  Nd7 {[%clk 0:02:51]} 10. O-O {[%clk 0:02:56]}  c5 {[%clk 0:02:50]} 11. d5 {[%clk 0:02:56]}  Bxc3 {[%clk 0:02:46]} 12. bxc3 {[%clk 0:02:57]}  Bxf3 {[%clk 0:02:44]} 13. Bxf3 {[%clk 0:02:58]}  c4 {[%clk 0:02:45]} 14. Qd4 {[%clk 0:02:56]}  Qc7 {[%clk 0:02:43]} 15. Rab1 {[%clk 0:02:55]}  b6 {[%clk 0:02:27]} 16. Be2 {[%clk 0:02:54]}  Rac8 {[%clk 0:02:25]} 17. f4 {[%clk 0:02:53]}  Qc5 {[%clk 0:02:21]} 18. Rfd1 {[%clk 0:02:53]}  e5 {[%clk 0:02:18]} 19. dxe6 {[%clk 0:02:50]}  fxe6 {[%clk 0:02:18]} 20. g3 {[%clk 0:02:19]}  e5 {[%clk 0:02:15]} 21. Bxc4+ {[%clk 0:02:12]}  Kh8 {[%clk 0:02:06]} 22. Qxc5 {[%clk 0:02:12]}  Nxc5 {[%clk 0:02:06]} 23. fxe5 {[%clk 0:02:08]}  Nxe4 {[%clk 0:02:07]} 24. Rd4 {[%clk 0:02:04]}  Nxc3 {[%clk 0:02:07]} 25. Re1 {[%clk 0:02:01]}  b5 {[%clk 0:02:04]} 26. Bb3 {[%clk 0:01:59]}  a5 {[%clk 0:02:04]} 27. e6 {[%clk 0:01:58]}  Kg7 {[%clk 0:01:57]} 28. e7 {[%clk 0:01:50]}  Rfe8 {[%clk 0:01:57]} 29. Rf4 {[%clk 0:01:44]}  Rc7 {[%clk 0:01:48]} 30. Rf7+ {[%clk 0:01:42]}  Kh6 {[%clk 0:01:48]} 31. Re5 {[%clk 0:01:05]}  a4 {[%clk 0:01:47]} 32. Bc2 {[%clk 0:01:05]}  Nxa2 {[%clk 0:01:21]} 33. Be4 {[%clk 0:01:05]}  Nc3 {[%clk 0:01:15]} 34. Bf3 {[%clk 0:01:05]}  a3 {[%clk 0:01:05]} 35. g4 {[%clk 0:01:05]}  Ne4 {[%clk 0:00:55]} 36. Bxe4 {[%clk 0:01:02]}  Rc1+ {[%clk 0:00:20]} 37. Kg2 {[%clk 0:01:01]} 1-0


[Site "https://www.chess.com"]